{"text_format":"1","workbook":"xlsx","n_sheets":1,"sheets":["3.5.4 InWallFinish"],"not_rendered":{"charts":0,"images":0,"macros":0,"external_links":14,"defined_names":2792,"comments":0,"pivot_tables":0},"unopened":[],"bounds":{"document_bytes":16777216,"sheet_cells":100000,"rows_first":2000,"rows_last":500,"rows_between":2000,"halvings":0,"cell_chars":16384,"cell_head_chars":4096},"cells_cut":0,"cells_raw":0,"read":"whole","date_system":"1900"}

{"sheet":"3.5.4 InWallFinish","index":0,"n_rows":43,"n_cols":9,"rows_kept":43,"cut":false,"hidden":false,"merged":[]}
[null,"JLR -BiW PC structure tender  ",null,null,"COMPANY:"]
[null,"3. Architectural, Civil and Structural / Architektúra"]
[]
[null,"Item","Popis","Unit","Quantity","Unit Price","Item Price","Sub Total","Total (EUR)"]
[]
[null,"3.5.4","Povrchové úpravy",null,null,null,null,null,{"$f":"SUM(G7:G42)","v":0}]
[]
[null,"3.5.4.2","Maľba, farba biela",null,null,null,null,{"$f":"SUM(G9:G24)","v":0}]
[null,null,"Os E"]
[null,"3.5.4.2.1-01","Os E strana MP&L:\nMaľba omietok, 1 x penetrácia + 2 x maľba, vratane lesenia","m2",{"$f":"+(11*20)*6","v":1320},null,{"$f":"F10*E10","v":0}]
[null,"3.5.4.2.2-02","Os E strana Body:\nMaľba omietok, 1 x penetrácia + 2 x maľba, vratane lesenia","m2",{"$f":"+(11*20)*6","v":1320},null,0]
[null,null,"Tear down"]
[null,"3.5.4.2.1-03","Vonkajsie steny:\nMaľba omietok, 1 x penetrácia + 2 x maľba, vratane lesenia","m2",{"$f":"55.5*6.9","v":382.95000000000005},null,{"$f":"F13*E13","v":0}]
[null,"3.5.4.2.1-04","Vnutorne steny:\nMaľba omietok, 1 x penetrácia + 2 x maľba, vratane lesenia","m2",{"$f":"+(51+32)*6.5+(27+16)*3","v":668.5},null,{"$f":"F14*E14","v":0}]
[null,"3.5.4.2.1-05","Stropy:\nMaľba omietok, 1 x penetrácia + 2 x maľba, vratane lesenia","m2",{"$f":"292-63","v":229},null,0]
[null,null,"Schodiska spine"]
[null,"3.5.4.2.1-06","Vnutorne steny:\nMaľba omietok, 1 x penetrácia + 2 x maľba, vratane lesenia","m2",{"$f":"22.6*(9.5+3)*2","v":565},null,{"$f":"F17*E17","v":0}]
[null,"3.5.4.2.1-07","Stropy, cela ramien:\nMaľba omietok, 1 x penetrácia + 2 x maľba, vratane lesenia","m2",{"$f":"25*2.2*2","v":110.00000000000001},null,0]
[null,null,"Vytahove sachty"]
[null,"3.5.4.2.1-08","Osobne vytahy:\nMaľba zelezobetonovych stien, 1 x penetrácia + 2 x maľba, vratane lesenia","m2",{"$f":"9.7*(9.5)*2","v":184.29999999999998},null,{"$f":"F20*E20","v":0}]
[null,"3.5.4.2.1-09","Nakladny vytah:\nMaľba zelezobetonovych stien, 1 x penetrácia + 2 x maľba, vratane lesenia","m2",{"$f":"10*(9.5)*2","v":190},null,0]
[null,"3.5.4.2.1-10","Osobne vytahy - protiprasny nater:\nMaľba jamy, 1 x penetrácia + 2 x maľba, vratane lesenia","m2",{"$f":"(6+9.7*2)*2","v":50.8},null,{"$f":"F22*E22","v":0}]
[null,"3.5.4.2.1-11","Nakladny vytah - protiprasny nater:\nMaľba jamy, 1 x penetrácia + 2 x maľba, vratane lesenia","m2",{"$f":"6.3+10*2","v":26.3},null,0]
[]
[null,"3.5.4.5","Omietka na monolitoch - SADROVA OMIETKA",null,null,null,null,{"$f":"SUM(G26:G42)","v":0}]
[null,null,"Os E"]
[null,"3.5.4.5-01","Os E strana MP&L:\nomietanie vratane penetracie, rohovych profilov, dilatacnych profilov, lesenia, atd..","m2",1320,null,{"$f":"F27*E27","v":0}]
[null,"3.5.4.5-02","Os E strana Body:\nomietanie vratane penetracie, rohovych profilov, dilatacnych profilov, lesenia, atd..","m2",1320,null,{"$f":"F28*E28","v":0}]
[null,"3.5.4.5-03","Priplatok za vystuzujucu sietku vkladanu do omietky","m2",132,null,0]
[null,null,"Tear down"]
[null,"3.5.4.5-04","Vonkajsie steny:\nomietanie vratane penetracie, rohovych profilov, dilatacnych profilov, lesenia, atd..","m2",382.95000000000005,null,{"$f":"F31*E31","v":0}]
[null,"3.5.4.5-05","Vnutorne steny:\nomietanie vratane penetracie, rohovych profilov, dilatacnych profilov, lesenia, atd..","m2",668.5,null,{"$f":"F32*E32","v":0}]
[null,"3.5.4.5-06","Stropy:\nomietanie vratane penetracie, rohovych profilov, dilatacnych profilov, lesenia, atd..","m2",229,null,0]
[null,"3.5.4.5-07","Priplatok za vystuzujucu sietku vkladanu do omietky","m2",{"$f":"+E31+E32","v":1051.45},null,{"$f":"F34*E34","v":0}]
[null,"3.5.4.5-07a","Priplatok za vystuzujucu sietku vkladanu do omietky-STROP","m2",{"$f":"+E33","v":229},null,0]
[null,null,"Schodiska spine"]
[null,"3.5.4.2.1-08","Steny:\nomietanie vratane penetracie, rohovych profilov, lesenia, atd..","m2",565,null,{"$f":"F37*E37","v":0}]
[null,"3.5.4.2.1-09","Stropy, cela ramien:\nomietanie vratane penetracie, rohovych profilov, lesenia, atd..","m2",110.00000000000001,null,0]
[null,"3.5.4.5-10","Priplatok za vystuzujucu sietku vkladanu do omietky","m2",{"$f":"+E37","v":565},null,0]
[null,"3.5.4.5-10a","Priplatok za vystuzujucu sietku vkladanu do omietky-STROP, CELA","m2",{"$f":"+E38","v":110.00000000000001},null,{"$f":"F40*E40","v":0}]
[null,"3.5.4.5-11","Priplatok za dilatacny profil","m",{"$f":"22.6*4*4","v":361.6},null,0]
[]
[null,"3.5.4",{"$f":"C6","v":"Povrchové úpravy"},null,null,null,null,null,{"$f":"SUM(H7:H42)","v":0}]